fUST/lending_fUST_20250611
["ID","MTS","AMOUNT","RATE_DAILY","PERIOD"]
[365376770,1749628242798,-248.6259382,0.00023,2]
[365376771,1749628242807,-1127.42139629,0.00023,2]
[365376772,1749628242817,-44157.08048027,0.00023,2]
[365376773,1749628242827,-10043.38789823,0.00023,2]
[365376774,1749628242836,-181167.89203179,0.00023,20]
[365376775,1749628242846,-1328.71905864,0.00023,2]
[365376776,1749628242855,-12971.49030353,0.00023,2]
[365376777,1749628242865,-800.0,0.00023,2]
[365376778,1749628242875,-51165.86,0.00023,7]
[365376779,1749628242884,-1103.49589991,0.00023,30]
[365376780,1749628242894,-151.0,0.00023,7]
[365376781,1749628242904,-1380.75,0.00023,7]
[365376782,1749628242914,-160.0,0.00023,7]
[365376783,1749628242923,-153.607775,0.00023,7]
[365376784,1749628242933,-151.657686,0.00023,7]
[365376785,1749628242943,-151.0,0.00023,7]
[365376786,1749628242953,-151.36068,0.00023,7]
[365376787,1749628242962,-151.0,0.00023,7]
[365376788,1749628242972,-155.0,0.00023012,2]
[365376789,1749628242981,-609.87,0.00023013,4]
[365376790,1749628242991,-688.96,0.00023013,4]
[365376791,1749628243000,-460.0,0.00023013,4]
[365376792,1749628243010,-460.0,0.00023013,4]
[365376793,1749628243019,-977.98,0.00023013,4]
[365376794,1749628243029,-1374.14,0.00023013,4]
[365376795,1749628243039,-576.79,0.00023013,4]
[365376796,1749628243048,-1395.08,0.00023013,4]
[365376797,1749628243058,-2181.68,0.00023013,4]
[365376799,1749628243067,-1733.36,0.00023013,4]
[365376800,1749628243077,-1886.09,0.00023013,4]
[365376801,1749628243087,-1529.17,0.00023013,4]
[365376802,1749628243096,-163.17705377,0.00023014,2]
[365376804,1749628243106,-804.78,0.00023034,7]
[365376805,1749628243116,-398.60189672,0.00023107,8]
[365376806,1749628243125,-804.78,0.00023134,5]
[365376807,1749628243141,-329.210747,0.00023151,2]
[365376809,1749628243156,-1214.27197445,0.00023175,2]
[365376811,1749628243167,-411.6,0.000232,7]
[365376813,1749628243178,-400.0,0.00023215,4]
[365376815,1749628243188,-453.83,0.00023216,4]
[365376817,1749628243198,-803.16,0.00023216,4]
[365376819,1749628243209,-460.0,0.00023216,4]
[365376821,1749628243219,-460.0,0.00023216,4]
[365376823,1749628243228,-984.66,0.00023216,4]
[365376824,1749628243238,-460.0,0.00023216,4]
[365376826,1749628243251,-616.38,0.00023216,4]
[365376827,1749628243261,-921.74,0.00023216,4]
[365376828,1749628243271,-2514.18,0.00023216,4]
[365376829,1749628243280,-1049.28,0.00023216,4]
[365376830,1749628243290,-716.44,0.00023216,4]
[365376831,1749628243300,-460.0,0.00023216,2]
[365376832,1749628243310,-537.61,0.00023216,4]
[365376833,1749628243320,-460.0,0.00023216,4]
[365376834,1749628243329,-804.78,0.00023234,4]
[365376835,1749628243340,-1242.1,0.00023241,2]
[365376836,1749628243349,-398.60189672,0.00023245,8]
[365376837,1749628243359,-563.73371198,0.00023256,2]
[365376838,1749628243370,-5000.0,0.00023269,2]
[365376839,1749628243380,-207.4,0.00023269,2]
[365376840,1749628243390,-1688.0,0.00023269,2]
[365376841,1749628243399,-750.0,0.00023269,2]
[365376842,1749628243409,-750.0,0.00023269,2]
[365376843,1749628243418,-750.0,0.00023269,2]
[365376844,1749628243428,-750.0,0.00023269,2]
[365376845,1749628243438,-750.0,0.00023269,2]
[365376846,1749628243447,-750.0,0.00023269,2]
[365376847,1749628243456,-500.0,0.00023269,2]
[365376848,1749628243466,-151.0,0.00023269,2]
[365376849,1749628243475,-750.0,0.00023269,2]
[365376850,1749628243485,-500.0,0.00023269,2]
[365376851,1749628243495,-151.0,0.00023269,2]
[365376852,1749628243504,-750.0,0.00023269,2]
[365376853,1749628243513,-500.0,0.00023269,2]
[365376854,1749628243523,-151.0,0.00023269,2]
[365376855,1749628243532,-750.0,0.00023269,2]
[365376856,1749628243541,-151.0,0.00023269,2]
[365376857,1749628243550,-500.0,0.00023269,2]
[365376858,1749628243560,-750.0,0.00023269,2]
[365376859,1749628243569,-151.0,0.00023269,2]
[365376860,1749628243578,-500.0,0.00023269,2]
[365376861,1749628243588,-750.0,0.00023269,2]
[365376862,1749628243598,-151.0,0.00023269,2]
[365376863,1749628243607,-750.0,0.00023269,2]
[365376864,1749628243617,-750.0,0.00023269,2]
[365376865,1749628243626,-750.0,0.00023269,2]
[365376866,1749628243636,-750.0,0.00023269,2]
[365376867,1749628243645,-385.26,0.00023283,3]
[365376868,1749628243655,-609.87,0.00023287,4]
[365376869,1749628243664,-688.96,0.00023287,4]
[365376870,1749628243673,-460.0,0.00023287,4]
[365376871,1749628243682,-977.98,0.00023287,4]
[365376872,1749628243692,-1374.14,0.00023287,4]
[365376873,1749628243702,-576.79,0.00023287,4]
[365376874,1749628243711,-1395.08,0.00023287,4]
[365376875,1749628243721,-2181.68,0.00023287,4]
[365376876,1749628243731,-1733.36,0.00023287,4]
[365376877,1749628243742,-1886.09,0.00023287,4]
[365376878,1749628243752,-1529.17,0.00023287,4]
[365376879,1749628243762,-153.0,0.00023315,2]
[365376880,1749628243771,-153.0,0.00023315,2]
[365376881,1749628243781,-153.0,0.00023315,2]
[365376882,1749628243791,-153.0,0.00023315,2]
[365376883,1749628243800,-153.0,0.00023315,2]
[365376884,1749628243810,-153.0,0.00023315,2]
[365376885,1749628243820,-153.0,0.00023315,2]
[365376886,1749628243829,-153.0,0.00023315,2]
[365376887,1749628243839,-153.0,0.00023315,2]
[365376888,1749628243848,-153.0,0.00023315,2]
[365376889,1749628243858,-153.0,0.00023315,2]
[365376890,1749628243868,-153.0,0.00023315,2]
[365376891,1749628243878,-307.872905,0.00023315,2]
[365376892,1749628243887,-153.0,0.00023315,2]
[365376893,1749628243897,-153.0,0.00023315,2]
[365376894,1749628243907,-153.0,0.00023315,2]
[365376895,1749628243917,-153.0,0.00023315,2]
[365376896,1749628243927,-1302.25997558,0.00023324,2]
[365376897,1749628243936,-804.78,0.00023334,6]
[365376898,1749628243945,-163.17705377,0.00023342,2]
[365376899,1749628243956,-162.17309574,0.00023342,2]
[365376900,1749628243965,-398.60189672,0.00023383,9]
[365376901,1749628243975,-455472.28380987,0.00023399,2]
[365376902,1749628244082,-8608.24093297,0.00023399,2]
[365376903,1749628244109,-201.08,0.00021907,10]
[365376904,1749628244119,-175.0591984,0.00023399,2]
[365376905,1749628244134,-800.0,0.00023399,2]
[365376906,1749628244146,-1753.04995578,0.00023399,2]
[365376907,1749628244157,-4121.82314604,0.00023399,2]
[365376908,1749628244215,-4097.38104625,0.00023399,2]
[365376914,1749628246760,-432.69179407,0.00021297,4]
[365376915,1749628246769,-460.0,0.00021298,4]
[365376916,1749628246779,-460.0,0.00021572,4]
[365376917,1749628246788,-460.0,0.00021846,4]
[365376918,1749628246797,-460.0,0.0002212,4]
[365376919,1749628246806,-22898.4864216,0.00023399,2]
[365376922,1749628849747,161.378295,0.00013699,2]
[365376929,1749629191354,200.0,0.00023988,120]
[365376930,1749629214483,-1482.85518541,0.000247,120]
[365376931,1749629215033,-2017.14481459,0.000248,120]
[365376946,1749629251136,200.0,0.00024184,120]
[365376995,1749629431976,-177.517354,0.00019958,2]
[365376997,1749629431986,-427.932646,0.00020169,2]
[365377013,1749629432137,-481.84569023,0.00020169,2]
[365377015,1749629432150,-405.6684851,0.00020169,2]
[365377018,1749629432161,-347.13913437,0.00020169,2]
[365377020,1749629432170,-245.0,0.00020179,2]
[365377022,1749629432180,-300.0,0.00020179,2]
[365377024,1749629432189,-300.0,0.00020179,2]
[365377026,1749629432198,-300.0,0.0002018,2]
[365377028,1749629432208,-1200.0,0.0002018,2]
[365377029,1749629432217,-4363.82280651,0.00020182,2]
[365377030,1749629432228,-2600.0,0.00020182,2]
[365377032,1749629432239,-2599.85870363,0.00020182,2]
[365377034,1749629432251,-1137.5,0.00020182,2]
[365377035,1749629432262,-4869.19082922,0.00020182,2]
[365377110,1749629438956,-9329.62766064,0.00020182,2]
[365377111,1749629438970,-157.94596,0.00020396,2]
[365377112,1749629438987,-292.88,0.00020482,2]
[365377113,1749629438998,-770.0320289,0.00020573,2]
[365377114,1749629439012,-165.961,0.00020995,2]
[365377115,1749629439028,-460.0,0.00021095,4]
[365377116,1749629439047,-536.08,0.00021095,4]
[365377117,1749629439062,-460.0,0.00021095,4]
[365377118,1749629439072,-547.74,0.00021095,4]
[365377119,1749629439082,-460.0,0.00021095,4]
[365377120,1749629439092,-617.85,0.00021095,4]
[365377121,1749629439102,-460.0,0.00021095,4]
[365377122,1749629439113,-392.16016363,0.00021095,4]
[365377123,1749629439123,-460.0,0.00021095,4]
[365377124,1749629439133,-460.0,0.00021095,4]
[365377125,1749629439143,-742.54,0.00021095,4]
[365377126,1749629439152,-683.08,0.00021095,4]
[365377127,1749629439162,-699.52,0.00021095,4]
[365377128,1749629439172,-652.81,0.00021095,4]
[365377129,1749629439181,-991.74,0.00021095,4]
[365377130,1749629439191,-460.0,0.00021095,4]
[365377131,1749629439200,-453.29333538,0.00021095,2]
[365377132,1749629439209,-1785.02,0.00021095,4]
[365377133,1749629439219,-460.0,0.00021095,4]
[365377134,1749629439228,-929.45,0.00021095,4]
[365377135,1749629439238,-411.95115847,0.00021095,4]
[365377136,1749629439247,-554.87,0.00021095,4]
[365377137,1749629439257,-1415.61,0.00021095,4]
[365377138,1749629439266,-1174.07,0.00021095,4]
[365377139,1749629439276,-1125.68,0.00021095,4]
[365377140,1749629439286,-460.0,0.00021095,4]
[365377141,1749629439296,-490.15188869,0.00021095,4]
[365377142,1749629439305,-460.0,0.00021095,4]
[365377143,1749629439315,-1296.69,0.00021095,4]
[365377144,1749629439325,-536.08,0.00021369,4]
[365377145,1749629439335,-460.0,0.00021369,4]
[365377146,1749629439345,-547.74,0.00021369,4]
[365377147,1749629439354,-460.0,0.00021369,4]
[365377148,1749629439365,-617.85,0.00021369,4]
[365377149,1749629439374,-460.0,0.00021369,4]
[365377150,1749629439384,-228.94310513,0.00021369,4]
[365377151,1749629439394,-460.0,0.00021369,4]
[365377153,1749629439404,-158.09617834,0.00021369,4]
[365377155,1749629439413,-742.54,0.00021369,4]
[365377156,1749629439423,-683.08,0.00021369,4]
[365377157,1749629439433,-699.52,0.00021369,4]
[365377158,1749629439442,-652.81,0.00021369,4]
[365377159,1749629439451,-991.74,0.00021369,4]
[365377160,1749629439461,-460.0,0.00021369,4]
[365377161,1749629439471,-1785.02,0.00021369,4]
[365377162,1749629439480,-460.0,0.00021369,4]
[365377164,1749629439490,-929.45,0.00021369,4]
[365377166,1749629439499,-554.87,0.00021369,4]
[365377167,1749629439509,-1415.61,0.00021369,4]
[365377168,1749629439518,-679.79139201,0.00021369,4]
[365377169,1749629439530,-388.13637237,0.00021369,4]
[365377290,1749629446040,-460.0,0.00021095,4]
[365377291,1749629446050,-106.14223562,0.00021369,4]
[365377292,1749629446059,-1066.09844859,0.00021369,4]
[365377294,1749629492487,200.0,0.00024215,120]
[365377296,1749629551872,200.0,0.00024083,120]
[365377305,1749629671275,200.0,0.00024181,120]
[365377309,1749629827818,161.378295,0.00013699,2]
[365377315,1749630232172,400.0,0.00024,120]
[365377316,1749630252406,800.0,0.000244,120]
[365377378,1749630631972,-274.81330121,0.00019225,2]
[365377379,1749630631982,-1993.02172032,0.0002,2]
[365377381,1749630631992,-153.71640649,0.0002,5]
[365377382,1749630632001,-250.2281696,0.00020049,2]
[365377383,1749630632010,-362.0874309,0.00020095,2]
[365377384,1749630632019,-172.603079,0.00020121,2]
[365377385,1749630632028,-293.81,0.0002035,2]
[365377386,1749630632037,-434.3016927,0.00021015,2]
[365377387,1749630632047,-151.30541512,0.00021082,2]
[365377400,1749630632183,-300.0,0.00021093,2]
[365377401,1749630632193,-439.12868059,0.00021093,2]
[365377422,1749630637926,-760.87131941,0.00021093,2]
[365377424,1749630637936,-1369.22868059,0.00021094,2]
[365377429,1749630637980,-4377.5873635,0.00021094,2]
[365377431,1749630637992,-1145.57690442,0.00021094,2]
[365377441,1749630638092,-43107.60705149,0.00021094,2]
[365377443,1749630638102,-300.0,0.00021094,2]
[365377445,1749630638111,-276.39247356,0.00021095,4]
[365377447,1749630638121,-167.249,0.00021095,2]
[365377449,1749630638130,-1242.66,0.00021095,4]
[365377451,1749630638140,-460.0,0.00021095,4]
[365377453,1749630638149,-460.0,0.00021095,4]
[365377454,1749630638158,-502.1,0.00021095,4]
[365377455,1749630638167,-491.41,0.00021095,4]
[365377456,1749630638176,-460.0,0.00021095,4]
[365377457,1749630638185,-566.36,0.00021095,4]
[365377458,1749630638195,-680.66,0.00021095,4]
[365377459,1749630638204,-909.09,0.00021095,4]
[365377460,1749630638213,-613.16,0.00021095,4]
[365377461,1749630638222,-641.85,0.00021095,4]
[365377462,1749630638231,-460.0,0.00021095,4]
[365377463,1749630638240,-1636.27,0.00021095,4]
[365377464,1749630638250,-1297.64,0.00021095,4]
[365377465,1749630638259,-851.99,0.00021095,4]
[365377466,1749630638268,-508.63,0.00021095,4]
[365377467,1749630638277,-1092.13,0.00021095,4]
[365377468,1749630638286,-1034.35,0.00021095,4]
[365377469,1749630638295,-217.79820407,0.000212,2]
[365377470,1749630638304,-256.05539912,0.00021299,2]
[365377471,1749630638313,-264.16629319,0.00021299,2]
[365377472,1749630638322,-388.13637237,0.00021299,2]
[365377473,1749630638332,-250.86973189,0.00021299,2]
[365377474,1749630638341,-365.0707398,0.000213,2]
[365377475,1749630638350,-365.0707398,0.000213,2]
[365377476,1749630638360,-365.0707398,0.000213,2]
[365377477,1749630638369,-587.61,0.00021319,2]
[365377478,1749630638378,-460.0,0.00021365,4]
[365377479,1749630638387,-460.0,0.00021365,4]
[365377480,1749630638396,-460.0,0.00021365,4]
[365377481,1749630638405,-641.23,0.00021365,4]
[365377482,1749630638414,-460.0,0.00021365,4]
[365377483,1749630638424,-1242.66,0.00021369,4]
[365377484,1749630638433,-460.0,0.00021369,4]
[365377485,1749630638442,-460.0,0.00021369,4]
[365377487,1749630638452,-502.1,0.00021369,4]
[365377488,1749630638461,-491.41,0.00021369,4]
[365377489,1749630638470,-460.0,0.00021369,4]
[365377490,1749630638479,-566.36,0.00021369,4]
[365377492,1749630638489,-680.66,0.00021369,4]
[365377494,1749630638497,-909.09,0.00021369,4]
[365377496,1749630638507,-613.16,0.00021369,4]
[365377498,1749630638516,-641.85,0.00021369,4]
[365377500,1749630638526,-460.0,0.00021369,4]
[365377502,1749630638536,-1636.27,0.00021369,4]
[365377503,1749630638545,-1297.64,0.00021369,4]
[365377505,1749630638555,-851.99,0.00021369,4]
[365377507,1749630638564,-508.63,0.00021369,4]
[365377510,1749630638574,-1092.13,0.00021369,4]
[365377512,1749630638586,-1034.35,0.00021369,4]
[365377513,1749630638596,-177.79823368,0.00021369,4]
[365377515,1749630638605,-172.1078423,0.00021397,2]
[365377516,1749630638615,-365.0707398,0.00021616,2]
[365377517,1749630638625,-167.57,0.00021633,10]
[365377518,1749630638634,-837.85,0.00021633,10]
[365377519,1749630638643,-460.0,0.00021639,4]
[365377520,1749630638653,-460.0,0.00021639,4]
[365377521,1749630638662,-460.0,0.00021639,4]
[365377522,1749630638672,-641.23,0.00021639,4]
[365377523,1749630638681,-460.0,0.00021639,4]
[365377524,1749630638691,-1242.66,0.00021643,4]
[365377525,1749630638700,-460.0,0.00021643,4]
[365377526,1749630638709,-460.0,0.00021643,4]
[365377527,1749630638719,-502.1,0.00021643,4]
[365377528,1749630638728,-491.41,0.00021643,4]
[365377529,1749630638738,-254.11812497,0.00021643,4]
[365377530,1749630638747,-566.36,0.00021643,4]
[365377531,1749630638756,-680.66,0.00021643,4]
[365377532,1749630638765,-909.09,0.00021643,4]
[365377533,1749630638774,-613.16,0.00021643,4]
[365377534,1749630638783,-641.85,0.00021643,4]
[365377535,1749630638792,-460.0,0.00021643,4]
[365377536,1749630638802,-1636.27,0.00021643,4]
[365377537,1749630638811,-1297.64,0.00021643,4]
[365377538,1749630638821,-851.99,0.00021643,4]
[365377539,1749630638829,-508.63,0.00021643,4]
[365377540,1749630638840,-1092.13,0.00021643,4]
[365377541,1749630638850,-1034.35,0.00021643,4]
[365377542,1749630638859,-153.0,0.00021671,2]
[365377543,1749630638869,-153.0,0.00021671,2]
[365377544,1749630638879,-153.0,0.00021671,2]
[365377545,1749630638889,-217.79820407,0.00021723,2]
[365377546,1749630638899,-500.0,0.00021831,2]
[365377547,1749630638910,-460.0,0.00021913,4]
[365377548,1749630638919,-460.0,0.00021913,4]
[365377549,1749630638929,-460.0,0.00021913,4]
[365377550,1749630638939,-641.23,0.00021913,4]
[365377551,1749630638951,-460.0,0.00021913,4]
[365377552,1749630638963,-500.0,0.00021916,2]
[365377553,1749630638972,-188.58,0.00021916,2]
[365377554,1749630638982,-1242.66,0.00021917,4]
[365377555,1749630638991,-460.0,0.00021917,4]
[365377556,1749630639002,-460.0,0.00021917,4]
[365377557,1749630639011,-502.1,0.00021917,4]
[365377558,1749630639020,-491.41,0.00021917,4]
[365377559,1749630639030,-566.36,0.00021917,4]
[365377560,1749630639040,-680.66,0.00021917,4]
[365377561,1749630639050,-909.09,0.00021917,4]
[365377562,1749630639059,-613.16,0.00021917,4]
[365377563,1749630639068,-641.85,0.00021917,4]
[365377564,1749630639077,-460.0,0.00021917,4]
[365377565,1749630639088,-1636.27,0.00021917,4]
[365377566,1749630639098,-1060.57939215,0.00021917,4]
[365377647,1749630646129,-1035.55,0.00021095,4]
[365377648,1749630646139,-1035.55,0.00021369,4]
[365377649,1749630646149,-1035.55,0.00021643,4]
[365377650,1749630646158,-237.06060785,0.00021917,4]
[365377651,1749630646168,-644.91263039,0.00021917,4]
[365377658,1749630833136,161.378295,0.00013699,2]
[365377771,1749631832311,-312.52494282,0.00019813,2]
[365377773,1749631832321,-50.23880614,0.0002024,2]
[365377811,1749631838220,-145.27811524,0.0002024,2]
[365377812,1749631838230,-160.0,0.00020284,2]
[365377813,1749631838240,-309.38,0.0002034,2]
[365377814,1749631838250,-2010.9866512,0.00020447,2]
[365377815,1749631838260,-800.0,0.00020564,2]
[365377816,1749631838270,-800.0,0.00020568,2]
[365377817,1749631838279,-800.0,0.0002059,2]
[365377818,1749631838288,-800.0,0.00020923,2]
[365377819,1749631838299,-265.50739745,0.00020994,2]
[365377820,1749631838309,-300.0,0.00020999,2]
[365377821,1749631838320,-300.0,0.00020999,2]
[365377822,1749631838330,-300.0,0.00020999,2]
[365377823,1749631838341,-1200.0,0.00020999,2]
[365377824,1749631838355,-573.4653004,0.00021,2]
[365377828,1749631838365,-153.0,0.00021,2]
[365377829,1749631838374,-176.8752352,0.00021,2]
[365377830,1749631838384,-730.1414796,0.00021,2]
[365377831,1749631838395,-158.7816813,0.00021,2]
[365377832,1749631838404,-732.716885,0.00021,2]
[365377833,1749631838414,-573.4653004,0.00021,2]
[365377834,1749631838423,-158.7816813,0.00021,2]
[365377835,1749631838433,-176.8752352,0.00021,2]
[365377836,1749631838444,-573.4653004,0.00021,2]
[365377837,1749631838454,-5126.7083165,0.00021,2]
[365377838,1749631838463,-158.7816813,0.00021,2]
[365377839,1749631838473,-573.4653004,0.00021,2]
[365377840,1749631838482,-158.7816813,0.00021,2]
[365377841,1749631838492,-176.8752352,0.00021,2]
[365377842,1749631838501,-573.4653004,0.00021,2]
[365377843,1749631838510,-365.0707398,0.00021041,2]
[365377844,1749631838520,-300.0,0.00021091,2]
[365377845,1749631838530,-161.99764877,0.00021093,2]
[365377846,1749631838540,-756.56780173,0.00021093,2]
[365377847,1749631838549,-500.0,0.00021093,2]
[365377848,1749631838558,-256.8672,0.00021093,2]
[365377849,1749631838568,-500.0,0.00021093,2]
[365377850,1749631838577,-500.0,0.00021093,2]
[365377851,1749631838589,-227.95942001,0.00021093,2]
[365377852,1749631838599,-380.05532253,0.00021093,2]
[365377853,1749631838608,-500.0,0.00021093,2]
[365377854,1749631838617,-756.56780173,0.00021093,2]
[365377855,1749631838627,-421.72564995,0.00021093,2]
[365377856,1749631838637,-500.0,0.00021093,2]
[365377857,1749631838646,-622.06405009,0.00021093,2]
[365377858,1749631838655,-756.56780173,0.00021093,2]
[365377859,1749631838664,-500.0,0.00021093,2]
[365377860,1749631838674,-756.56780173,0.00021093,2]
[365377861,1749631838685,-381.68849293,0.00021093,2]
[365377862,1749631838695,-756.56780173,0.00021093,2]
[365377863,1749631838705,-500.0,0.00021093,2]
[365377864,1749631838714,-756.56780173,0.00021093,2]
[365377865,1749631838724,-756.56780173,0.00021093,2]
[365377866,1749631838733,-500.0,0.00021093,2]
[365377867,1749631838743,-756.56780173,0.00021093,2]
[365377868,1749631838752,-500.0,0.00021093,2]
[365377869,1749631838761,-756.56780173,0.00021093,2]
[365377870,1749631838771,-500.0,0.00021093,2]
[365377871,1749631838781,-756.56780173,0.00021093,2]
[365377872,1749631838791,-500.0,0.00021093,2]
[365377873,1749631838800,-756.56780173,0.00021093,2]
[365377874,1749631838810,-756.56780173,0.00021093,2]
[365377875,1749631838819,-500.0,0.00021093,2]
[365377876,1749631838828,-756.56780173,0.00021093,2]
[365377877,1749631838839,-756.56780173,0.00021093,2]
[365377878,1749631838849,-756.56780173,0.00021093,2]
[365377879,1749631838858,-756.56780173,0.00021093,2]
[365377880,1749631838869,-756.56780173,0.00021093,2]
[365377883,1749631838879,-756.56780173,0.00021093,2]
[365377886,1749631838888,-756.56780173,0.00021093,2]
[365377888,1749631838898,-756.56780173,0.00021093,2]
[365377889,1749631838908,-756.56780173,0.00021093,2]
[365377890,1749631838917,-756.56780173,0.00021093,2]
[365377891,1749631838927,-756.56780173,0.00021093,2]
[365377892,1749631838936,-756.56780173,0.00021093,2]
[365377893,1749631838945,-756.56780173,0.00021093,2]
[365377894,1749631838955,-756.56780173,0.00021093,2]
[365377895,1749631838965,-756.56780173,0.00021093,2]
[365377896,1749631838974,-756.56780173,0.00021093,2]
[365377897,1749631838984,-756.56780173,0.00021093,2]
[365377898,1749631838994,-756.56780173,0.00021093,2]
[365377899,1749631839004,-756.56780173,0.00021093,2]
[365377900,1749631839014,-756.56780173,0.00021093,2]
[365377901,1749631839024,-756.56780173,0.00021093,2]
[365377902,1749631839033,-756.56780173,0.00021093,2]
[365377903,1749631839043,-756.56780173,0.00021093,2]
[365377904,1749631839053,-756.56780173,0.00021093,2]
[365377905,1749631839063,-756.56780173,0.00021093,2]
[365377906,1749631839073,-756.56780173,0.00021093,2]
[365377907,1749631839082,-756.56780173,0.00021093,2]
[365377908,1749631839094,-756.56780173,0.00021093,2]
[365377909,1749631839111,-756.56780173,0.00021093,2]
[365377910,1749631839121,-756.56780173,0.00021093,2]
[365377911,1749631839130,-756.56780173,0.00021093,2]
[365377912,1749631839140,-500.0,0.00021093,2]
[365377913,1749631839149,-756.56780173,0.00021093,2]
[365377914,1749631839159,-756.56780173,0.00021093,2]
[365377915,1749631839168,-756.56780173,0.00021093,2]
[365377916,1749631839178,-756.56780173,0.00021093,2]
[365377917,1749631839187,-756.56780173,0.00021093,2]
[365377918,1749631839198,-756.56780173,0.00021093,2]
[365377919,1749631839207,-756.56780173,0.00021093,2]
[365377920,1749631839216,-756.56780173,0.00021093,2]
[365377921,1749631839225,-756.56780173,0.00021093,2]
[365377922,1749631839234,-756.56780173,0.00021093,2]
[365377923,1749631839243,-756.56780173,0.00021093,2]
[365377924,1749631839253,-756.56780173,0.00021093,2]
[365377925,1749631839262,-756.56780173,0.00021093,2]
[365377926,1749631839272,-756.56780173,0.00021093,2]
[365377927,1749631839282,-756.56780173,0.00021093,2]
[365377928,1749631839291,-169.759,0.00021094,2]
[365377929,1749631839301,-460.0,0.00021095,4]
[365377930,1749631839309,-460.0,0.00021095,4]
[365377931,1749631839318,-400.0,0.00021095,4]
[365377932,1749631839328,-460.0,0.00021095,4]
[365377933,1749631839340,-460.0,0.00021095,4]
[365377934,1749631839353,-430.0,0.00021095,4]
[365377935,1749631839362,-460.0,0.00021095,4]
[365377936,1749631839373,-460.0,0.00021095,4]
[365377937,1749631839383,-460.0,0.00021095,4]
[365377938,1749631839392,-440.0,0.00021095,4]
[365377939,1749631839409,-460.0,0.00021095,4]
[365377940,1749631839420,-317.77774108,0.00021095,4]
[365377941,1749631839431,-440.0,0.00021095,4]
[365377942,1749631839442,-440.0,0.00021095,4]
[365377943,1749631839451,-460.0,0.00021095,4]
[365377944,1749631839461,-440.0,0.00021095,4]
[365377945,1749631839470,-430.0,0.00021095,4]
[365377946,1749631839481,-440.0,0.00021095,4]
[365377947,1749631839490,-440.0,0.00021095,4]
[365377948,1749631839500,-440.0,0.00021095,4]
[365377949,1749631839510,-440.0,0.00021095,4]
[365377950,1749631839519,-440.0,0.00021095,4]
[365377951,1749631839529,-440.0,0.00021095,4]
[365377952,1749631839538,-440.0,0.00021095,4]
[365377953,1749631839547,-440.0,0.00021095,4]
[365377954,1749631839556,-410.0,0.00021095,4]
[365377955,1749631839565,-460.0,0.00021095,4]
[365377956,1749631839574,-440.0,0.00021095,4]
[365377957,1749631839584,-400.0,0.00021095,4]
[365377959,1749631839594,-460.0,0.00021095,4]
[365377960,1749631839603,-440.0,0.00021095,4]
[365377961,1749631839613,-440.0,0.00021095,4]
[365377962,1749631839623,-440.0,0.00021095,4]
[365377963,1749631839632,-440.0,0.00021095,4]
[365377964,1749631839642,-440.0,0.00021095,4]
[365377965,1749631839651,-440.0,0.00021095,4]
[365377966,1749631839661,-440.0,0.00021095,4]
[365377967,1749631839670,-430.0,0.00021095,4]
[365377968,1749631839680,-430.0,0.00021095,4]
[365377969,1749631839689,-460.0,0.00021095,4]
[365377970,1749631839699,-460.0,0.00021095,4]